fUSD/lending_fUSD_20250911
["ID","MTS","AMOUNT","RATE_DAILY","PERIOD"]
[384902613,1757623842970,-400.0,0.00027397,7]
[384902615,1757623842979,-623.1,0.00027397,7]
[384902617,1757623842989,-400.0,0.00027397,7]
[384902619,1757623843000,-400.0,0.00027397,7]
[384902621,1757623843009,-400.0,0.00027397,7]
[384902623,1757623843019,-1943.95,0.00027397,7]
[384902625,1757623843028,-2261.55,0.00027397,7]
[384902627,1757623843037,-1126.85,0.00027397,7]
[384902629,1757623843047,-400.0,0.00027397,7]
[384902632,1757623843056,-400.0,0.00027397,7]
[384902634,1757623843065,-400.0,0.00027397,7]
[384902636,1757623843074,-782.42,0.00027397,7]
[384902638,1757623843084,-400.0,0.00027397,7]
[384902640,1757623843093,-400.0,0.00027397,7]
[384902642,1757623843102,-213.40199587,0.00027397,7]
[384902644,1757623843112,-400.0,0.00027397,7]
[384902647,1757623843123,-2757.13,0.00027397,7]
[384902649,1757623843132,-400.0,0.00027397,7]
[384902651,1757623843142,-416.48309328,0.00027397,7]
[384902653,1757623843151,-2073.24,0.00027397,7]
[384902655,1757623843160,-2004.86,0.00027397,7]
[384902657,1757623843170,-434.34,0.00027397,7]
[384902659,1757623843179,-400.0,0.00027397,7]
[384902661,1757623843189,-1060.0,0.00027397,7]
[384902663,1757623843198,-400.0,0.00027397,7]
[384902665,1757623843207,-433.6,0.00027397,7]
[384902667,1757623843216,-400.0,0.00027397,7]
[384902669,1757623843225,-400.0,0.00027397,7]
[384902671,1757623843234,-500.0,0.00027397,7]
[384902673,1757623843244,-400.0,0.00027397,7]
[384902675,1757623843253,-500.0,0.00027397,7]
[384902677,1757623843262,-500.0,0.00027397,7]
[384902679,1757623843271,-500.0,0.00027397,7]
[384902681,1757623843280,-322.50572453,0.00027397,7]
[384902683,1757623843289,-500.0,0.00027397,7]
[384902685,1757623843299,-1333.0,0.00027397,7]
[384902687,1757623843308,-400.0,0.00027397,7]
[384902689,1757623843318,-1333.0,0.00027397,7]
[384902721,1757623843327,-1333.0,0.00027397,7]
[384902724,1757623843620,-1333.0,0.00027397,7]
[384902726,1757623843629,-1333.0,0.00027397,7]
[384902728,1757623843639,-1333.0,0.00027397,7]
[384902730,1757623843649,-1333.0,0.00027397,7]
[384902732,1757623843658,-247.68286123,0.00027397,7]
[384902734,1757623843668,-1333.0,0.00027397,7]
[384902736,1757623843679,-1465.96,0.00027397,7]
[384902738,1757623843688,-1333.0,0.00027397,7]
[384902740,1757623843696,-1333.0,0.00027397,7]
[384902742,1757623843705,-400.0,0.00027397,7]
[384902744,1757623843714,-1333.0,0.00027397,7]
[384902746,1757623843722,-568.91,0.00027397,7]
[384902748,1757623843731,-662.72,0.00027397,7]
[384902750,1757623843740,-1920.36,0.00027397,7]
[384902752,1757623843749,-2361.64,0.00027397,7]
[384902754,1757623843758,-400.0,0.00027397,7]
[384902756,1757623843768,-413.49611607,0.00027397,7]
[384902758,1757623843777,-400.0,0.00027397,7]
[384902760,1757623843786,-400.0,0.00027397,7]
[384902762,1757623843795,-961.41,0.00027397,7]
[384902764,1757623843804,-400.0,0.00027397,7]
[384902766,1757623843813,-2857.98,0.00027397,7]
[384902768,1757623843822,-400.0,0.00027397,7]
[384902770,1757623843831,-400.0,0.00027397,7]
[384902772,1757623843840,-1537.76,0.00027397,7]
[384902774,1757623843849,-1498.52,0.00027397,7]
[384902776,1757623843858,-400.0,0.00027397,7]
[384902778,1757623843867,-412.5,0.00027397,7]
[384902780,1757623843877,-400.0,0.00027397,7]
[384902782,1757623843886,-400.0,0.00027397,7]
[384902784,1757623843895,-933.48,0.00027397,7]
[384902786,1757623843905,-400.0,0.00027397,7]
[384902788,1757623843914,-400.0,0.00027397,7]
[384902790,1757623843923,-400.0,0.00027397,7]
[384902792,1757623843932,-666.22,0.00027397,7]
[384902794,1757623843941,-400.0,0.00027397,7]
[384902796,1757623843950,-400.0,0.00027397,7]
[384902798,1757623843960,-400.0,0.00027397,7]
[384902800,1757623843969,-2356.01,0.00027397,7]
[384902802,1757623843978,-2818.4,0.00027397,7]
[384902804,1757623843987,-1828.39,0.00027397,7]
[384902806,1757623843996,-575.82,0.00027397,7]
[384902808,1757623844006,-553.2,0.00027397,7]
[384902810,1757623844015,-400.0,0.00027397,7]
[384902811,1757623844023,-151.0,0.00027397,7]
[384902812,1757623844033,-400.0,0.00027397,7]
[384902813,1757623844042,-490.65,0.00027397,7]
[384902814,1757623844051,-151.0,0.00027397,7]
[384902815,1757623844061,-1983.2,0.00027397,7]
[384902816,1757623844070,-400.0,0.00027397,7]
[384902817,1757623844079,-1486.52,0.00027397,7]
[384902818,1757623844089,-400.0,0.00027397,7]
[384902819,1757623844098,-400.0,0.00027397,7]
[384902821,1757623844107,-400.0,0.00027397,7]
[384902823,1757623844116,-829.15,0.00027397,7]
[384902825,1757623844125,-1158.01,0.00027397,7]
[384902827,1757623844135,-256.28703766,0.00027397,7]
[384902829,1757623844143,-1875.75,0.00027397,7]
[384902831,1757623844152,-400.0,0.00027397,7]
[384902833,1757623844162,-400.0,0.00027397,7]
[384902835,1757623844170,-281.04230717,0.00027397,7]
[384902837,1757623844179,-400.0,0.00027397,7]
[384902839,1757623844188,-400.0,0.00027397,7]
[384902841,1757623844197,-1398.15,0.00027397,7]
[384902843,1757623844206,-400.0,0.00027397,7]
[384902845,1757623844215,-400.0,0.00027397,7]
[384902846,1757623844224,-1975.56,0.00027397,7]
[384902848,1757623844233,-400.0,0.00027397,7]
[384902850,1757623844243,-798.02,0.00027397,7]
[384902853,1757623844252,-400.0,0.00027397,7]
[384902855,1757623844261,-4124.37,0.00027397,5]
[384902856,1757623844271,-400.0,0.00027397,7]
[384902859,1757623844280,-400.0,0.00027397,7]
[384902861,1757623844292,-2649.99,0.00027397,7]
[384902863,1757623844301,-400.0,0.00027397,7]
[384902865,1757623844310,-1573.01,0.00027397,7]
[384902867,1757623844319,-151.0,0.00027397,7]
[384902869,1757623844328,-400.0,0.00027397,7]
[384902871,1757623844336,-408.83607962,0.00027397,7]
[384902873,1757623844347,-400.0,0.00027397,7]
[384902875,1757623844356,-2853.1,0.00027397,7]
[384902877,1757623844366,-170.713605,0.00027397,7]
[384902879,1757623844375,-400.0,0.00027397,7]
[384902881,1757623844385,-400.0,0.00027397,7]
[384902883,1757623844394,-400.0,0.00027397,7]
[384902885,1757623844403,-1678.81,0.00027397,7]
[384902887,1757623844413,-400.0,0.00027397,7]
[384902889,1757623844421,-400.0,0.00027397,7]
[384902891,1757623844430,-400.0,0.00027397,7]
[384902893,1757623844439,-400.0,0.00027397,7]
[384902895,1757623844448,-355.02826236,0.00027397,7]
[384902897,1757623844458,-400.0,0.00027397,2]
[384902899,1757623844468,-2781.83,0.00027397,7]
[384902901,1757623844477,-400.0,0.00027397,7]
[384902903,1757623844487,-891.78,0.00027397,7]
[384902905,1757623844495,-2040.67,0.00027397,7]
[384902907,1757623844505,-400.0,0.00027397,7]
[384902909,1757623844514,-400.0,0.00027397,7]
[384902911,1757623844523,-451.04,0.00027397,7]
[384902913,1757623844532,-151.0,0.00027397,7]
[384902915,1757623844542,-2069.05,0.00027397,7]
[384902917,1757623844551,-400.0,0.00027397,7]
[384902919,1757623844560,-400.0,0.00027397,7]
[384902921,1757623844569,-400.0,0.00027397,7]
[384902923,1757623844578,-400.0,0.00027397,7]
[384902925,1757623844588,-400.0,0.00027397,7]
[384902927,1757623844598,-400.0,0.00027397,7]
[384902929,1757623844611,-400.0,0.00027397,7]
[384902931,1757623844620,-1867.52,0.00027397,7]
[384902933,1757623844630,-467.07,0.00027397,7]
[384902935,1757623844639,-400.0,0.00027397,7]
[384902937,1757623844648,-400.0,0.00027397,7]
[384902939,1757623844657,-400.0,0.00027397,7]
[384902941,1757623844666,-400.0,0.00027397,7]
[384902943,1757623844676,-400.0,0.00027397,7]
[384902945,1757623844685,-400.0,0.00027397,7]
[384902947,1757623844694,-400.0,0.00027397,7]
[384902949,1757623844704,-2428.72,0.00027397,7]
[384902951,1757623844713,-400.0,0.00027397,7]
[384902953,1757623844722,-665.68,0.00027397,7]
[384902955,1757623844732,-461.3,0.00027397,7]
[384902957,1757623844742,-400.0,0.00027397,7]
[384902959,1757623844750,-833.39,0.00027397,7]
[384902961,1757623844760,-455.12,0.00027397,7]
[384902963,1757623844768,-2990.81,0.00027397,7]
[384902965,1757623844778,-2637.42,0.00027397,7]
[384902967,1757623844786,-400.0,0.00027397,7]
[384902969,1757623844796,-2116.91,0.00027397,7]
[384902971,1757623844806,-2278.86,0.00027397,7]
[384902973,1757623844815,-1791.15,0.00027397,7]
[384902975,1757623844824,-409.4559871,0.00027397,7]
[384902977,1757623844833,-500.0,0.00027397,7]
[384902980,1757623844844,-939.55,0.00027397,7]
[384902981,1757623844853,-400.0,0.00027397,7]
[384902983,1757623844862,-1590.04,0.00027397,7]
[384902986,1757623844872,-400.0,0.00027397,7]
[384902988,1757623844882,-400.0,0.00027397,7]
[384902989,1757623844892,-1568.08,0.00027397,7]
[384902991,1757623844901,-400.0,0.00027397,7]
[384902993,1757623844910,-1812.39,0.00027397,7]
[384902995,1757623844920,-988.84,0.00027397,7]
[384902997,1757623844929,-2240.34,0.00027397,7]
[384903000,1757623844939,-964.59,0.00027397,7]
[384903002,1757623844948,-831.29,0.00027397,7]
[384903004,1757623844957,-2528.2,0.00027397,7]
[384903006,1757623844966,-841.68,0.00027397,7]
[384903008,1757623844975,-402.95,0.00027397,7]
[384903010,1757623844984,-400.0,0.00027397,7]
[384903012,1757623844993,-2672.1,0.00027397,7]
[384903014,1757623845002,-400.0,0.00027397,7]
[384903015,1757623845011,-224.064234,0.00027397,7]
[384903018,1757623845020,-939.05,0.00027397,7]
[384903019,1757623845029,-400.0,0.00027397,7]
[384903022,1757623845039,-400.0,0.00027397,7]
[384903023,1757623845048,-405.38,0.00027397,7]
[384903025,1757623845057,-2259.89,0.00027397,7]
[384903027,1757623845066,-697.03,0.00027397,7]
[384903029,1757623845076,-702.28,0.00027397,7]
[384903031,1757623845085,-400.0,0.00027397,7]
[384903033,1757623845094,-202.31178918,0.00027397,7]
[384903035,1757623845103,-611.08,0.00027397,7]
[384903037,1757623845112,-1418.57,0.00027397,7]
[384903039,1757623845121,-400.0,0.00027397,7]
[384903041,1757623845131,-400.0,0.00027397,7]
[384903043,1757623845140,-400.0,0.00027397,7]
[384903045,1757623845149,-400.0,0.00027397,7]
[384903047,1757623845158,-404.58746904,0.00027397,7]
[384903049,1757623845167,-400.0,0.00027397,7]
[384903051,1757623845177,-925.23,0.00027397,7]
[384903053,1757623845186,-400.0,0.00027397,7]
[384903056,1757623845198,-485.39,0.00027397,7]
[384903058,1757623845207,-400.0,0.00027397,7]
[384903060,1757623845216,-2138.94,0.00027397,7]
[384903062,1757623845226,-1834.18,0.00027397,7]
[384903064,1757623845235,-740.02,0.00027397,7]
[384903066,1757623845244,-1016.16,0.00027397,7]
[384903068,1757623845253,-1661.0,0.00027397,7]
[384903070,1757623845262,-151.0,0.00027397,7]
[384903072,1757623845271,-400.0,0.00027397,7]
[384903074,1757623845280,-508.22,0.00027397,7]
[384903076,1757623845289,-2063.63,0.00027397,7]
[384903078,1757623845299,-151.0,0.00027397,7]
[384903080,1757623845308,-401.74805658,0.00027397,7]
[384903082,1757623845317,-698.62,0.00027397,7]
[384903084,1757623845327,-400.0,0.00027397,7]
[384903086,1757623845336,-2766.16,0.00027397,7]
[384903088,1757623845345,-400.0,0.00027397,7]
[384903090,1757623845354,-400.0,0.00027397,7]
[384903092,1757623845363,-2307.27,0.00027397,7]
[384903094,1757623845371,-195.15616638,0.00027397,7]
[384903096,1757623845381,-400.0,0.00027397,7]
[384903098,1757623845391,-400.0,0.00027397,7]
[384903100,1757623845400,-400.0,0.00027397,7]
[384903102,1757623845409,-1245.38,0.00027397,7]
[384903104,1757623845418,-503.59,0.00027397,7]
[384903106,1757623845427,-403.51554052,0.00027397,7]
[384903108,1757623845436,-293.22227889,0.00027397,7]
[384903110,1757623845446,-400.0,0.00027397,7]
[384903112,1757623845456,-400.0,0.00027397,7]
[384903114,1757623845466,-2003.48,0.00027397,7]
[384903116,1757623845475,-402.30603926,0.00027397,7]
[384903118,1757623845485,-400.0,0.00027397,7]
[384903120,1757623845494,-400.0,0.00027397,7]
[384903122,1757623845503,-500.0,0.00027397,7]
[384903124,1757623845512,-500.0,0.00027397,7]
[384903126,1757623845521,-500.0,0.00027397,7]
[384903128,1757623845530,-500.0,0.00027397,7]
[384903130,1757623845540,-500.0,0.00027397,7]
[384903131,1757623845549,-400.0,0.00027397,7]
[384903133,1757623845558,-500.0,0.00027397,7]
[384903136,1757623845568,-400.0,0.00027397,7]
[384903138,1757623845577,-500.0,0.00027397,7]
[384903140,1757623845587,-500.0,0.00027397,7]
[384903142,1757623845596,-500.0,0.00027397,7]
[384903144,1757623845610,-400.0,0.00027397,7]
[384903145,1757623845620,-1202.45,0.00027397,7]
[384903147,1757623845630,-400.0,0.00027397,7]
[384903150,1757623845640,-2797.51,0.00027397,7]
[384903152,1757623845650,-2289.27,0.00027397,7]
[384903154,1757623845659,-400.0,0.00027397,7]
[384903156,1757623845669,-1000.0,0.00027397,7]
[384903158,1757623845680,-2589.74,0.00027397,7]
[384903160,1757623845690,-400.0,0.00027397,7]
[384903162,1757623845699,-400.0,0.00027397,7]
[384903164,1757623845708,-318.89751471,0.00027397,7]
[384903166,1757623845718,-2149.18,0.00027397,7]
[384903167,1757623845727,-400.0,0.00027397,7]
[384903170,1757623845736,-400.0,0.00027397,7]
[384903172,1757623845746,-170.77638754,0.00027397,7]
[384903174,1757623845755,-400.0,0.00027397,7]
[384903176,1757623845763,-427.33,0.00027397,7]
[384903178,1757623845772,-400.0,0.00027397,7]
[384903180,1757623845782,-1805.81,0.00027397,7]
[384903182,1757623845791,-400.0,0.00027397,7]
[384903183,1757623845800,-400.0,0.00027397,7]
[384903186,1757623845809,-1778.27,0.00027397,7]
[384903188,1757623845818,-400.0,0.00027397,7]
[384903190,1757623845827,-969.68,0.00027397,7]
[384903191,1757623845837,-400.0,0.00027397,7]
[384903194,1757623845847,-400.0,0.00027397,7]
[384903195,1757623845856,-400.0,0.00027397,7]
[384903196,1757623845865,-400.0,0.00027397,7]
[384903197,1757623845875,-409.65021681,0.00027397,7]
[384903198,1757623845883,-400.0,0.00027397,7]
[384903199,1757623845892,-400.0,0.00027397,7]
[384903200,1757623845901,-400.0,0.00027397,7]
[384903201,1757623845911,-400.0,0.00027397,7]
[384903202,1757623845920,-1856.73,0.00027397,7]
[384903203,1757623845928,-400.0,0.00027397,7]
[384903204,1757623845937,-1620.95,0.00027397,7]
[384903206,1757623845946,-400.0,0.00027397,7]
[384903208,1757623845956,-1702.68,0.00027397,7]
[384903211,1757623845967,-521.34,0.00027397,7]
[384903213,1757623845976,-2037.1,0.00027397,7]
[384903214,1757623845985,-400.0,0.00027397,7]
[384903216,1757623845995,-654.1,0.00027397,7]
[384903219,1757623846004,-624.0,0.00027397,7]
[384903221,1757623846013,-592.12,0.00027397,7]
[384903223,1757623846023,-400.0,0.00027397,7]
[384903225,1757623846032,-500.0,0.00027397,7]
[384903227,1757623846041,-500.0,0.00027397,7]
[384903229,1757623846050,-500.0,0.00027397,7]
[384903230,1757623846059,-500.0,0.00027397,7]
[384903233,1757623846069,-500.0,0.00027397,7]
[384903235,1757623846079,-500.0,0.00027397,7]
[384903237,1757623846089,-400.0,0.00027397,7]
[384903239,1757623846098,-500.0,0.00027397,7]
[384903242,1757623846108,-2402.64,0.00027397,7]
[384903245,1757623846117,-500.0,0.00027397,7]
[384903247,1757623846127,-2601.89,0.00027397,7]
[384903249,1757623846136,-400.0,0.00027397,7]
[384903251,1757623846145,-151.0,0.00027397,7]
[384903253,1757623846154,-2055.02,0.00027397,7]
[384903255,1757623846163,-645.52,0.00027397,7]
[384903257,1757623846172,-400.0,0.00027397,7]
[384903259,1757623846181,-400.0,0.00027397,7]
[384903260,1757623846191,-1073.51,0.00027397,7]
[384903262,1757623846200,-500.0,0.00027397,7]
[384903265,1757623846210,-400.0,0.00027397,7]
[384903267,1757623846219,-1502.41,0.00027397,7]
[384903269,1757623846229,-271.47687469,0.00027397,7]
[384903271,1757623846238,-2080.72,0.00027397,7]
[384903273,1757623846247,-151.948976,0.00027397,7]
[384903275,1757623846256,-1576.05,0.00027397,7]
[384903277,1757623846265,-400.0,0.00027397,7]
[384903279,1757623846274,-400.0,0.00027397,7]
[384903281,1757623846283,-400.0,0.00027397,7]
[384903283,1757623846293,-1019.64,0.00027397,7]
[384903307,1757623846506,-400.0,0.00027397,7]
[384903309,1757623846517,-400.0,0.00027397,7]
[384903311,1757623846527,-400.0,0.00027397,7]
[384903314,1757623846537,-400.0,0.00027397,7]
[384903316,1757623846547,-370.19348842,0.00027397,7]
[384903317,1757623846556,-1852.4,0.00027397,7]
[384903319,1757623846565,-400.0,0.00027397,7]
[384903321,1757623846574,-400.0,0.00027397,7]
[384903323,1757623846584,-402.91175386,0.00027397,7]
[384903325,1757623846593,-400.0,0.00027397,7]
[384903327,1757623846604,-730.1,0.00027397,7]
[384903329,1757623846614,-2096.1,0.00027397,7]
[384903332,1757623846624,-400.02,0.00027397,7]
[384903334,1757623846634,-400.0,0.00027397,7]
[384903336,1757623846643,-400.0,0.00027397,7]
[384903338,1757623846652,-400.0,0.00027397,7]
[384903340,1757623846661,-1023.73,0.00027397,7]
[384903342,1757623846671,-404.95974038,0.00027397,7]
[384903344,1757623846680,-429.42209874,0.00027397,7]
[384903346,1757623846689,-429.11,0.00027397,7]
[384903348,1757623846698,-528.13,0.00027397,7]
[384903350,1757623846707,-1553.92,0.00027397,7]
[384903352,1757623846717,-400.0,0.00027397,7]
[384903354,1757623846726,-400.0,0.00027397,7]
[384903356,1757623846736,-500.0,0.00027397,7]
[384903358,1757623846744,-3547.49,0.00027397,7]
[384903360,1757623846753,-1265.48,0.00027397,7]
[384903361,1757623846763,-400.0,0.00027397,7]
[384903363,1757623846772,-2110.95,0.00027397,7]
[384903365,1757623846781,-1772.63,0.00027397,7]
[384903367,1757623846790,-400.0,0.00027397,7]
[384903369,1757623846799,-400.0,0.00027397,7]
[384903371,1757623846808,-1297.62,0.00027397,7]
[384903373,1757623846817,-400.0,0.00027397,7]
[384903375,1757623846826,-843.7,0.00027397,7]
[384903377,1757623846835,-609.77,0.00027397,7]
[384903379,1757623846844,-2116.9,0.00027397,7]
[384903381,1757623846853,-400.0,0.00027397,7]
[384903383,1757623846863,-400.0,0.00027397,7]
[384903385,1757623846872,-400.0,0.00027397,7]
[384903387,1757623846881,-747.76,0.00027397,7]
[384903389,1757623846890,-2525.01,0.00027397,7]
[384903391,1757623846900,-151.0,0.00027397,7]
[384903393,1757623846909,-400.0,0.00027397,7]
[384903395,1757623846917,-1030.39,0.00027397,7]
[384903397,1757623846926,-400.0,0.00027397,7]
[384903399,1757623846935,-1805.81,0.00027397,7]
[384903401,1757623846945,-400.0,0.00027397,7]
[384903403,1757623846954,-2402.46,0.00027397,7]
[384903405,1757623846963,-400.0,0.00027397,7]
[384903407,1757623846973,-400.0,0.00027397,7]
[384903409,1757623846982,-1281.1,0.00027397,7]
[384903411,1757623846991,-400.0,0.00027397,7]
[384903413,1757623847002,-406.83,0.00027397,7]
[384903415,1757623847011,-686.7,0.00027397,7]
[384903417,1757623847020,-400.0,0.00027397,7]
[384903419,1757623847029,-2434.53,0.00027397,7]
[384903422,1757623847039,-246.83109075,0.00027397,7]
[384903424,1757623847048,-400.0,0.00027397,7]
[384903425,1757623847057,-1766.3,0.00027397,7]
[384903427,1757623847066,-400.0,0.00027397,7]
[384903430,1757623847075,-1354.00229613,0.00027397,7]
[384903557,1757623848311,-501.51770387,0.00027397,7]
[384903560,1757623848325,-289.2229176,0.00027397,7]
[384903613,1757623848826,-110.7770824,0.00027397,7]
[384903615,1757623848835,-400.0,0.00027397,7]
[384903617,1757623848845,-1092.62,0.00027397,7]
[384903661,1757623849327,-108.24518725,0.00027397,7]
[384903920,1757623852107,-27.79052055,0.00027397,7]
[384904069,1757623853642,-333.80079165,0.00026378,2]
[384904071,1757623853654,-1182.13620796,0.00026378,2]
[384904110,1757623854006,-315.87300039,0.00026378,2]
[384904112,1757623854016,-22.00699961,0.00027395,2]
[384904114,1757623854027,-487.94853519,0.00027395,2]
[384904116,1757623854036,-153.05146481,0.00027395,2]
[384904119,1757623854055,-356.90406999,0.00027395,2]
[384904121,1757623854064,-509.9555348,0.00027395,2]
[384904124,1757623854074,-509.9555348,0.00027395,2]
[384904126,1757623854084,-509.9555348,0.00027395,2]
[384904128,1757623854093,-509.9555348,0.00027395,2]
[384904130,1757623854102,-509.9555348,0.00027395,2]
[384904132,1757623854111,-509.9555348,0.00027395,2]
[384904134,1757623854120,-509.9555348,0.00027395,2]
[384904136,1757623854129,-509.9555348,0.00027395,2]
[384904138,1757623854139,-509.9555348,0.00027395,2]
[384904140,1757623854148,-509.9555348,0.00027395,2]
[384904142,1757623854158,-509.9555348,0.00027395,2]
[384904144,1757623854167,-509.9555348,0.00027395,2]
[384904146,1757623854176,-509.9555348,0.00027395,2]
[384904148,1757623854185,-509.9555348,0.00027395,2]
[384904150,1757623854195,-509.9555348,0.00027395,2]
[384904152,1757623854204,-509.9555348,0.00027395,2]
[384904154,1757623854213,-509.9555348,0.00027395,2]
[384904156,1757623854222,-509.9555348,0.00027395,2]
[384904158,1757623854231,-509.9555348,0.00027395,2]
[384904160,1757623854241,-509.9555348,0.00027395,2]
[384904162,1757623854250,-509.9555348,0.00027395,2]
[384904164,1757623854259,-509.9555348,0.00027395,2]
[384904166,1757623854270,-509.9555348,0.00027395,2]
[384904168,1757623854279,-509.9555348,0.00027395,2]
[384904170,1757623854288,-509.9555348,0.00027395,2]
[384904172,1757623854298,-509.9555348,0.00027395,2]
[384904174,1757623854307,-509.9555348,0.00027395,2]
[384904176,1757623854316,-509.9555348,0.00027395,2]
[384904178,1757623854326,-509.9555348,0.00027395,2]
[384904180,1757623854335,-509.9555348,0.00027395,2]
[384904182,1757623854344,-509.9555348,0.00027395,2]
[384904184,1757623854353,-509.9555348,0.00027395,2]
[384904186,1757623854363,-509.9555348,0.00027395,2]
[384904188,1757623854372,-509.9555348,0.00027395,2]
[384904196,1757623854449,-509.9555348,0.00027395,2]
[384904198,1757623854459,-509.9555348,0.00027395,2]
[384904200,1757623854468,-509.9555348,0.00027395,2]
[384904202,1757623854477,-509.9555348,0.00027395,2]
[384904204,1757623854486,-509.9555348,0.00027395,2]
[384904206,1757623854495,-509.9555348,0.00027395,2]
[384904208,1757623854504,-509.9555348,0.00027395,2]
[384904210,1757623854513,-509.9555348,0.00027395,2]
[384904212,1757623854523,-509.9555348,0.00027395,2]
[384904214,1757623854532,-509.9555348,0.00027395,2]
[384904216,1757623854540,-509.9555348,0.00027395,2]
[384904218,1757623854556,-509.9555348,0.00027395,2]
[384904220,1757623854567,-509.9555348,0.00027395,2]
[384904222,1757623854576,-509.9555348,0.00027395,2]
[384904224,1757623854585,-509.9555348,0.00027395,2]
[384904226,1757623854595,-509.9555348,0.00027395,2]
[384904228,1757623854609,-509.9555348,0.00027395,2]
[384904229,1757623854619,-509.9555348,0.00027395,2]
[384904231,1757623854629,-509.9555348,0.00027395,2]
[384904233,1757623854639,-509.9555348,0.00027395,2]
[384904235,1757623854648,-509.9555348,0.00027395,2]
[384904238,1757623854657,-509.9555348,0.00027395,2]
[384904239,1757623854666,-263.9642922,0.00027397,7]
[384904241,1757623854675,-400.0,0.00027397,7]
[384904243,1757623854685,-400.0,0.00027397,7]
[384904245,1757623854695,-400.0,0.00027397,7]
[384904247,1757623854704,-151.0,0.00027397,7]
[384904249,1757623854713,-400.0,0.00027397,7]
[384904251,1757623854722,-400.0,0.00027397,7]
[384904253,1757623854732,-997.58,0.00027397,7]
[384904255,1757623854741,-400.0,0.00027397,7]
[384904257,1757623854750,-2024.96,0.00027397,7]
[384904259,1757623854759,-366.75790421,0.00027397,7]
[384904261,1757623854768,-400.0,0.00027397,7]
[384904263,1757623854777,-400.0,0.00027397,7]
[384904265,1757623854786,-874.64,0.00027397,7]
[384904267,1757623854795,-1238.46,0.00027397,7]
[384904268,1757623854804,-2037.32,0.00027397,7]
[384904269,1757623854813,-400.0,0.00027397,7]
[384904270,1757623854822,-400.0,0.00027397,7]
[384904271,1757623854831,-500.0,0.00027397,7]
[384904272,1757623854840,-400.0,0.00027397,7]
[384904273,1757623854848,-2093.84,0.00027397,7]
[384904274,1757623854857,-400.0,0.00027397,7]
[384904275,1757623854867,-400.0,0.00027397,7]
[384904277,1757623854875,-400.0,0.00027397,7]
[384904278,1757623854885,-791.93,0.00027397,7]
[384904280,1757623854896,-1589.05,0.00027397,7]
[384904282,1757623854905,-400.0,0.00027397,7]
[384904284,1757623854913,-566.71,0.00027397,7]
[384904286,1757623854922,-400.0,0.00027397,7]
[384904288,1757623854931,-400.0,0.00027397,7]
[384904290,1757623854940,-1139.74,0.00027397,7]
[384904292,1757623854950,-400.0,0.00027397,7]
[384904294,1757623854959,-1692.1874542,0.00027397,7]
[384904297,1757623854974,-1447.6925458,0.00027397,7]
[384904299,1757623854983,-95.75278788,0.00027397,7]
[384904303,1757623855009,-304.24721212,0.00027397,7]
[384904305,1757623855019,-810.36628788,0.00027397,7]
[384904307,1757623855030,-190.69371212,0.00027397,7]
[384904309,1757623855039,-400.0,0.00027397,7]
[384904311,1757623855048,-78.85030798,0.00027397,7]
[384904347,1757623855374,-509.9555348,0.00027395,2]